[Event "*** Titled Tuesday Blitz"]
[Site "Chess.com"]
[Date "2018.12.04"]
[Round "2"]
[White "ShadowJolteon"]
[Black "VincentBlom"]
[Result "1-0"]
[WhiteElo "2415"]
[BlackElo "2502"]
[TimeControl "180+2"]
[EndTime "13:25:34 PST"]
[Termination "ShadowJolteon won by checkmate"]

1. d4 {[%clk 0:03:01.9]} 1... Nf6 {[%clk 0:03:00.5]} 2. c4 {[%clk 0:03:02.5]}
2... b6 {[%clk 0:03:01.6]} 3. Nf3 {[%clk 0:03:00]} 3... Bb7 {[%clk 0:03:02.9]}
4. g3 {[%clk 0:03:01.2]} 4... g6 {[%clk 0:03:04.5]} 5. Bg2 {[%clk 0:03:02.3]}
5... Bg7 {[%clk 0:03:06.2]} 6. O-O {[%clk 0:03:03.4]} 6... O-O {[%clk
0:03:07.5]} 7. Nc3 {[%clk 0:03:04.7]} 7... Ne4 {[%clk 0:03:08.7]} 8. Qc2 {[%clk
0:03:02.2]} 8... Nxc3 {[%clk 0:03:09.1]} 9. Qxc3 {[%clk 0:03:02.9]} 9... d6
{[%clk 0:03:10.2]} 10. b3 {[%clk 0:03:01.8]} 10... c5 {[%clk 0:03:10.8]} 11. e3
{[%clk 0:03:02.3]} 11... Nd7 {[%clk 0:03:10.3]} 12. Bb2 {[%clk 0:03:02.2]} 12...
Be4 {[%clk 0:03:10.7]} 13. Rfd1 {[%clk 0:02:56.9]} 13... Qc7 {[%clk 0:03:11.3]}
14. Qd2 {[%clk 0:02:57]} 14... Rac8 {[%clk 0:03:06.2]} 15. d5 {[%clk 0:02:49.8]}
15... Bxf3 {[%clk 0:03:03.3]} 16. Bxg7 {[%clk 0:02:44.5]} 16... Kxg7 {[%clk
0:03:04.2]} 17. Bxf3 {[%clk 0:02:45.2]} 17... h5 {[%clk 0:02:59.8]} 18. Bg2
{[%clk 0:02:45.8]} 18... h4 {[%clk 0:03:00]} 19. f4 {[%clk 0:02:46.3]} 19...
hxg3 {[%clk 0:03:00.8]} 20. hxg3 {[%clk 0:02:47.1]} 20... Rh8 {[%clk 0:03:02.2]}
21. Kf2 {[%clk 0:02:48]} 21... Rcg8 {[%clk 0:03:02.7]} 22. Rh1 {[%clk
0:02:48.9]} 22... Kf8 {[%clk 0:03:03.5]} 23. Qc3 {[%clk 0:02:49]} 23... Nf6
{[%clk 0:03:03.8]} 24. Bf3 {[%clk 0:02:48.9]} 24... Qd7 {[%clk 0:03:04.6]} 25.
e4 {[%clk 0:02:26.4]} 25... Rxh1 {[%clk 0:02:20.8]} 26. Rxh1 {[%clk 0:02:24.5]}
26... Ne8 {[%clk 0:02:22]} 27. Rh7 {[%clk 0:02:13.2]} 27... Nf6 {[%clk 0:02:08]}
28. Rh1 {[%clk 0:02:08.4]} 28... g5 {[%clk 0:02:07.5]} 29. e5 {[%clk 0:01:34.6]}
29... Ng4+ {[%clk 0:01:09.8]} 30. Bxg4 {[%clk 0:01:18.1]} 30... Qxg4 {[%clk
0:01:10.3]} 31. Qf3 {[%clk 0:01:13.3]} 31... Qf5 {[%clk 0:01:08.7]} 32. exd6
{[%clk 0:01:03.8]} 32... exd6 {[%clk 0:01:05.3]} 33. Re1 {[%clk 0:00:51.4]}
33... Rh8 {[%clk 0:00:54.4]} 34. g4 {[%clk 0:00:25.9]} 34... Qxf4 {[%clk
0:00:32.4]} 35. Qxf4 {[%clk 0:00:26.6]} 35... gxf4 {[%clk 0:00:34.3]} 36. Kf3
{[%clk 0:00:21]} 36... Rh3+ {[%clk 0:00:28.6]} 37. Kxf4 {[%clk 0:00:19.3]} 37...
Rh2 {[%clk 0:00:30]} 38. Ra1 {[%clk 0:00:13.6]} 38... Rb2 {[%clk 0:00:27.3]} 39.
Kf5 {[%clk 0:00:14.9]} 39... Kg7 {[%clk 0:00:28.4]} 40. Kg5 {[%clk 0:00:16.2]}
40... a5 {[%clk 0:00:29]} 41. Kf5 {[%clk 0:00:17.3]} 41... Rf2+ {[%clk
0:00:29.3]} 42. Kg5 {[%clk 0:00:18.3]} 42... Rc2 {[%clk 0:00:29.4]} 43. Kf5
{[%clk 0:00:19.2]} 43... Re2 {[%clk 0:00:30.9]} 44. Kg5 {[%clk 0:00:19.5]} 44...
Rf2 {[%clk 0:00:32.1]} 45. Kh4 {[%clk 0:00:11]} 45... Kg6 {[%clk 0:00:32.7]} 46.
Kg3 {[%clk 0:00:12]} 46... Rd2 {[%clk 0:00:33.1]} 47. Kf4 {[%clk 0:00:13.2]}
47... Rb2 {[%clk 0:00:32]} 48. Kg3 {[%clk 0:00:14.4]} 48... Kg5 {[%clk
0:00:33.4]} 49. Rf1 {[%clk 0:00:15.3]} 49... Rxa2 {[%clk 0:00:32.2]} 50. Rxf7
{[%clk 0:00:15.6]} 50... Rb2 {[%clk 0:00:33.5]} 51. Rf5+ {[%clk 0:00:15.3]}
51... Kg6 {[%clk 0:00:34.5]} 52. Rf3 {[%clk 0:00:17.2]} 52... Ra2 {[%clk
0:00:32.4]} 53. Re3 {[%clk 0:00:17.4]} 53... Kf7 {[%clk 0:00:26.7]} 54. Re6
{[%clk 0:00:16.9]} 54... Ra3 {[%clk 0:00:27.1]} 55. Rxd6 {[%clk 0:00:18.1]}
55... Rxb3+ {[%clk 0:00:28.6]} 56. Kf4 {[%clk 0:00:20]} 56... a4 {[%clk
0:00:29.9]} 57. Rd7+ {[%clk 0:00:21.1]} 57... Kg6 {[%clk 0:00:30.8]} 58. Ra7
{[%clk 0:00:23]} 58... Rb4 {[%clk 0:00:31.2]} 59. Ke5 {[%clk 0:00:17.7]} 59...
Rxc4 {[%clk 0:00:32]} 60. d6 {[%clk 0:00:19.6]} 60... Rd4 {[%clk 0:00:31.1]} 61.
Ra6 {[%clk 0:00:16.4]} 61... Kf7 {[%clk 0:00:17.4]} 62. Rxb6 {[%clk 0:00:16.8]}
62... Ke8 {[%clk 0:00:15.1]} 63. Rc6 {[%clk 0:00:16.5]} 63... Rxg4 {[%clk
0:00:15.2]} 64. Ra6 {[%clk 0:00:07.5]} 64... Kd8 {[%clk 0:00:13.8]} 65. Kd5
{[%clk 0:00:08.8]} 65... c4 {[%clk 0:00:08.9]} 66. Rxa4 {[%clk 0:00:09.2]} 66...
Rg5+ {[%clk 0:00:10.4]} 67. Kc6 {[%clk 0:00:09.2]} 67... Ke8 {[%clk 0:00:10]}
68. Ra8+ {[%clk 0:00:06.6]} 68... Kf7 {[%clk 0:00:11.3]} 69. d7 {[%clk
0:00:07.7]} 69... Rg6+ {[%clk 0:00:12.6]} 70. Kc5 {[%clk 0:00:07.6]} 70... c3
{[%clk 0:00:12.5]} 71. d8=Q {[%clk 0:00:08.6]} 71... c2 {[%clk 0:00:14.1]} 72.
Qe8+ {[%clk 0:00:10]} 72... Kf6 {[%clk 0:00:14.5]} 73. Ra6+ {[%clk 0:00:10.3]}
73... Kf5 {[%clk 0:00:14.4]} 74. Qxg6+ {[%clk 0:00:11]} 74... Kf4 {[%clk
0:00:13.9]} 75. Qxc2 {[%clk 0:00:12.9]} 75... Kg3 {[%clk 0:00:14.7]} 76. Rf6
{[%clk 0:00:13.5]} 76... Kh4 {[%clk 0:00:15.8]} 77. Qg2 {[%clk 0:00:11.7]} 77...
Kh5 {[%clk 0:00:17.7]} 78. Rg6 {[%clk 0:00:11.4]} 78... Kh4 {[%clk 0:00:19.6]}
79. Rh6# {[%clk 0:00:13.3]} 1-0

[Event "*** Titled Tuesday Blitz"]
[Site "Chess.com"]
[Date "2018.12.04"]
[Round "2"]
[White "Andrew-FB00"]
[Black "aa175"]
[Result "0-1"]
[WhiteElo "1788"]
[BlackElo "1926"]
[TimeControl "180+2"]
[EndTime "13:25:34 PST"]
[Termination "aa175 won by resignation"]

1. e4 {[%clk 0:03:00.8]} 1... e5 {[%clk 0:02:58.6]} 2. Nf3 {[%clk 0:02:59.9]}
2... Nc6 {[%clk 0:02:59]} 3. Bb5 {[%clk 0:02:59.6]} 3... Nf6 {[%clk 0:02:59.2]}
4. d4 {[%clk 0:02:57.3]} 4... Nxe4 {[%clk 0:02:57.6]} 5. O-O {[%clk 0:02:51.3]}
5... Nd6 {[%clk 0:02:57.7]} 6. Bxc6 {[%clk 0:02:44.1]} 6... dxc6 {[%clk
0:02:55.5]} 7. Nxe5 {[%clk 0:02:44]} 7... Be7 {[%clk 0:02:53.5]} 8. Re1 {[%clk
0:02:36.5]} 8... Be6 {[%clk 0:02:49.9]} 9. Nc3 {[%clk 0:02:28.2]} 9... O-O
{[%clk 0:02:49.4]} 10. Ne4 {[%clk 0:02:28.4]} 10... Nxe4 {[%clk 0:02:49.9]} 11.
Rxe4 {[%clk 0:02:27.9]} 11... Qd5 {[%clk 0:02:49.2]} 12. Re1 {[%clk 0:02:22.9]}
12... Rad8 {[%clk 0:02:48.4]} 13. c3 {[%clk 0:02:16.6]} 13... c5 {[%clk
0:02:45.9]} 14. Be3 {[%clk 0:02:11.2]} 14... cxd4 {[%clk 0:02:46.2]} 15. Qxd4
{[%clk 0:02:00]} 15... Bf6 {[%clk 0:02:23.9]} 16. Qxd5 {[%clk 0:01:54.2]} 16...
Bxd5 {[%clk 0:02:25.8]} 17. Nf3 {[%clk 0:01:50]} 17... Rfe8 {[%clk 0:02:21.1]}
18. Nd4 {[%clk 0:01:38.1]} 18... a6 {[%clk 0:02:10.9]} 19. a3 {[%clk 0:01:31.2]}
19... c5 {[%clk 0:02:08.9]} 20. Nf5 {[%clk 0:01:21.1]} 20... g6 {[%clk
0:01:53.8]} 21. Ng3 {[%clk 0:01:19.4]} 21... c4 {[%clk 0:01:45.4]} 22. Rad1
{[%clk 0:01:18]} 22... Bc6 {[%clk 0:01:45]} 23. Ne2 {[%clk 0:01:12.5]} 23... Ba4
{[%clk 0:01:40.2]} 24. Rxd8 {[%clk 0:01:10.6]} 24... Rxd8 {[%clk 0:01:42.1]} 25.
Nd4 {[%clk 0:01:11.4]} 25... Re8 {[%clk 0:01:38.4]} 26. Kf1 {[%clk 0:01:07.8]}
26... Bxd4 {[%clk 0:01:36.6]} 27. Bxd4 {[%clk 0:01:07.4]} 27... Rxe1+ {[%clk
0:01:37.3]} 28. Kxe1 {[%clk 0:01:06.6]} 28... Bc6 {[%clk 0:01:38.3]} 29. f3
{[%clk 0:01:06.3]} 29... f5 {[%clk 0:01:39.2]} 30. Ke2 {[%clk 0:01:06.5]} 30...
Kf7 {[%clk 0:01:41.1]} 31. Ke3 {[%clk 0:01:06.5]} 31... Ke6 {[%clk 0:01:39.7]}
32. g3 {[%clk 0:01:01.1]} 32... Ba4 {[%clk 0:01:31.1]} 33. f4 {[%clk 0:00:58.7]}
33... Bc6 {[%clk 0:01:28.7]} 34. Be5 {[%clk 0:00:53.9]} 34... b5 {[%clk
0:01:30.6]} 35. Kd4 {[%clk 0:00:53.3]} 35... a5 {[%clk 0:01:23.2]} 36. Kc5
{[%clk 0:00:51.3]} 36... Be8 {[%clk 0:01:20.5]} 37. Bc7 {[%clk 0:00:48.1]} 37...
a4 {[%clk 0:01:20.6]} 38. Be5 {[%clk 0:00:46.9]} 38... g5 {[%clk 0:01:18.7]} 39.
Bb8 {[%clk 0:00:43.9]} 39... h6 {[%clk 0:01:16.9]} 40. Bc7 {[%clk 0:00:42.3]}
40... Kd7 {[%clk 0:01:15.3]} 41. Be5 {[%clk 0:00:41.7]} 41... Ke6 {[%clk
0:01:16.4]} 42. Bb8 {[%clk 0:00:31]} 42... Kf7 {[%clk 0:01:16.5]} 43. Bc7 {[%clk
0:00:27.7]} 43... Kg6 {[%clk 0:01:17.4]} 44. Kd5 {[%clk 0:00:24.4]} 44... Kh5
{[%clk 0:01:18.1]} 45. Ke5 {[%clk 0:00:21.7]} 45... Kg4 {[%clk 0:01:18.8]} 46.
fxg5 {[%clk 0:00:21.6]} 46... hxg5 {[%clk 0:01:19.5]} 47. Bd6 {[%clk 0:00:20.1]}
47... Bd7 {[%clk 0:01:16.4]} 48. Kf6 {[%clk 0:00:20.5]} 48... f4 {[%clk
0:01:07.4]} 49. gxf4 {[%clk 0:00:17.4]} 49... gxf4 {[%clk 0:01:09.3]} 50. h3+
{[%clk 0:00:17.7]} 50... Kf3 {[%clk 0:01:01.2]} 51. Ke5 {[%clk 0:00:17.2]} 51...
Bxh3 {[%clk 0:00:59.9]} 52. Kd4 {[%clk 0:00:16]} 52... Bd7 {[%clk 0:00:52.6]}
53. Be5 {[%clk 0:00:12.9]} 53... Be8 {[%clk 0:00:52.2]} 54. Bd6 {[%clk
0:00:12.5]} 54... Bc6 {[%clk 0:00:52.9]} 55. Be5 {[%clk 0:00:13.1]} 55... Kg4
{[%clk 0:00:48.8]} 56. Bd6 {[%clk 0:00:10.8]} 56... Kf5 {[%clk 0:00:20.1]} 57.
Bc7 {[%clk 0:00:07.6]} 57... b4 {[%clk 0:00:17.6]} 58. axb4 {[%clk 0:00:07.2]}
58... Bb5 {[%clk 0:00:18.5]} 59. Bd6 {[%clk 0:00:06.2]} 59... Kg4 {[%clk
0:00:17.6]} 60. Ke4 {[%clk 0:00:05.9]} 60... Bc6+ {[%clk 0:00:17.8]} 61. Kd4
{[%clk 0:00:06.6]} 61... f3 {[%clk 0:00:18.9]} 62. Ke3 {[%clk 0:00:07.2]} 62...
Bb5 {[%clk 0:00:19.6]} 63. Kf2 {[%clk 0:00:07.9]} 63... Bc6 {[%clk 0:00:20.1]}
64. Bc5 {[%clk 0:00:09]} 64... Kf5 {[%clk 0:00:21.2]} 65. Bd4 {[%clk 0:00:09.5]}
65... Ke4 {[%clk 0:00:22.4]} 66. Bc5 {[%clk 0:00:08.8]} 66... Kd3 {[%clk
0:00:23.6]} 67. Bd4 {[%clk 0:00:09.6]} 67... Kc2 {[%clk 0:00:24.6]} 68. b5
{[%clk 0:00:10.1]} 68... Bxb5 {[%clk 0:00:23.9]} 69. Kxf3 {[%clk 0:00:09.5]}
69... Kxb2 {[%clk 0:00:24.8]} 70. Ke3 {[%clk 0:00:10.7]} 70... a3 {[%clk
0:00:25.9]} 71. Kd2 {[%clk 0:00:05.9]} 0-1

[Event "*** Titled Tuesday Blitz"]
[Site "Chess.com"]
[Date "2018.12.04"]
[Round "2"]
[White "cherryandmint"]
[Black "David_Klein"]
[Result "0-1"]
[WhiteElo "2712"]
[BlackElo "2579"]
[TimeControl "180+2"]
[EndTime "13:25:46 PST"]
[Termination "David_Klein won by resignation"]

1. e4 {[%clk 0:03:01.9]} 1... g6 {[%clk 0:03:00.1]} 2. d4 {[%clk 0:03:02.5]}
2... Bg7 {[%clk 0:03:01.4]} 3. Nf3 {[%clk 0:03:03.4]} 3... c6 {[%clk 0:03:00.7]}
4. Bd3 {[%clk 0:03:00.8]} 4... d6 {[%clk 0:03:01.7]} 5. O-O {[%clk 0:03:01.4]}
5... e5 {[%clk 0:03:03]} 6. c3 {[%clk 0:03:02.1]} 6... Nd7 {[%clk 0:03:02]} 7.
Nbd2 {[%clk 0:03:01.2]} 7... Ngf6 {[%clk 0:03:03]} 8. Nc4 {[%clk 0:03:02.3]}
8... Qe7 {[%clk 0:03:02.5]} 9. dxe5 {[%clk 0:03:02.2]} 9... dxe5 {[%clk
0:03:02.2]} 10. b3 {[%clk 0:03:02.8]} 10... Nh5 {[%clk 0:02:35.2]} 11. Ba3
{[%clk 0:03:02.4]} 11... Nc5 {[%clk 0:02:35.9]} 12. Bc2 {[%clk 0:02:58.3]} 12...
Bf8 {[%clk 0:02:05.2]} 13. Nfxe5 {[%clk 0:02:37.5]} 13... Be6 {[%clk 0:02:03.5]}
14. b4 {[%clk 0:02:19.6]} 14... Nd7 {[%clk 0:01:57.5]} 15. b5 {[%clk 0:02:18.9]}
15... c5 {[%clk 0:01:57.7]} 16. Qf3 {[%clk 0:02:03.4]} 16... Nxe5 {[%clk
0:01:50.2]} 17. Nxe5 {[%clk 0:02:04.2]} 17... Bg7 {[%clk 0:01:51.7]} 18. Nd3
{[%clk 0:01:58.1]} 18... b6 {[%clk 0:01:46.9]} 19. g4 {[%clk 0:01:45.1]} 19...
Nf6 {[%clk 0:01:19.2]} 20. e5 {[%clk 0:01:45.4]} 20... Nd5 {[%clk 0:01:18.5]}
21. Bb3 {[%clk 0:01:04.3]} 21... Rd8 {[%clk 0:01:16.5]} 22. c4 {[%clk
0:00:54.3]} 22... Nc7 {[%clk 0:01:11.3]} 23. Nf4 {[%clk 0:00:45.6]} 23... O-O
{[%clk 0:01:07.4]} 24. Rae1 {[%clk 0:00:46.5]} 24... Bh6 {[%clk 0:00:55.9]} 25.
Nd5 {[%clk 0:00:46.2]} 25... Nxd5 {[%clk 0:00:43.2]} 26. cxd5 {[%clk 0:00:48.1]}
26... Bc8 {[%clk 0:00:44.5]} 27. d6 {[%clk 0:00:46.4]} 27... Qg5 {[%clk
0:00:42.1]} 28. Bc1 {[%clk 0:00:42]} 28... Qh4 {[%clk 0:00:38.1]} 29. Bxh6
{[%clk 0:00:34.2]} 29... Qxh6 {[%clk 0:00:40]} 30. h3 {[%clk 0:00:34.8]} 30...
Qg5 {[%clk 0:00:37.8]} 31. Qe3 {[%clk 0:00:33.5]} 31... Qh4 {[%clk 0:00:36]} 32.
f4 {[%clk 0:00:32.5]} 32... Kg7 {[%clk 0:00:30.5]} 33. f5 {[%clk 0:00:32.4]}
33... Bb7 {[%clk 0:00:30.6]} 34. f6+ {[%clk 0:00:32.4]} 34... Kh8 {[%clk
0:00:31.4]} 35. Kh2 {[%clk 0:00:31.9]} 35... Rde8 {[%clk 0:00:26.4]} 36. Qf4
{[%clk 0:00:30]} 36... g5 {[%clk 0:00:18.1]} 37. Qg3 {[%clk 0:00:27.6]} 37...
Qh6 {[%clk 0:00:18.7]} 38. Rf2 {[%clk 0:00:24.4]} 38... Rd8 {[%clk 0:00:19.3]}
39. Bc4 {[%clk 0:00:24.1]} 39... Bc8 {[%clk 0:00:19.9]} 40. Rd2 {[%clk
0:00:21.2]} 40... Kg8 {[%clk 0:00:20.8]} 41. Red1 {[%clk 0:00:22.1]} 41... Bd7
{[%clk 0:00:22]} 42. a4 {[%clk 0:00:23.7]} 42... Rfe8 {[%clk 0:00:23.2]} 43. Bd5
{[%clk 0:00:24.7]} 43... Qg6 {[%clk 0:00:24.5]} 44. Qd3 {[%clk 0:00:25]} 44...
Qxd3 {[%clk 0:00:23.7]} 45. Rxd3 {[%clk 0:00:26]} 45... Rxe5 {[%clk 0:00:25.4]}
46. Bc6 {[%clk 0:00:27.3]} 46... Be6 {[%clk 0:00:25.6]} 47. d7 {[%clk
0:00:28.4]} 47... Re2+ {[%clk 0:00:25.7]} 48. Kg3 {[%clk 0:00:29.3]} 48... c4
{[%clk 0:00:26.7]} 49. Rc3 {[%clk 0:00:30]} 49... Kf8 {[%clk 0:00:26.2]} 50. Rd4
{[%clk 0:00:27.4]} 50... Re1 {[%clk 0:00:21.1]} 51. Rdxc4 {[%clk 0:00:21.3]}
51... Bxc4 {[%clk 0:00:21.3]} 52. Rxc4 {[%clk 0:00:23.2]} 52... Re6 {[%clk
0:00:18.7]} 53. h4 {[%clk 0:00:21.6]} 53... h6 {[%clk 0:00:19.1]} 54. hxg5
{[%clk 0:00:21.6]} 54... hxg5 {[%clk 0:00:21]} 55. Rd4 {[%clk 0:00:23]} 55...
Rxf6 {[%clk 0:00:21.9]} 56. Rd5 {[%clk 0:00:24.6]} 56... Rg6 {[%clk 0:00:22.3]}
57. Kf3 {[%clk 0:00:25.9]} 57... Rf6+ {[%clk 0:00:23.1]} 58. Ke3 {[%clk
0:00:26.7]} 58... Re6+ {[%clk 0:00:24.4]} 59. Kd4 {[%clk 0:00:26.4]} 59... f6
{[%clk 0:00:25.7]} 60. Rf5 {[%clk 0:00:21.6]} 60... Ke7 {[%clk 0:00:26.3]} 61.
Rf2 {[%clk 0:00:22.3]} 61... Rd6+ {[%clk 0:00:25.7]} 62. Ke4 {[%clk 0:00:22.9]}
62... R8xd7 {[%clk 0:00:24.6]} 63. Bxd7 {[%clk 0:00:24]} 63... Kxd7 {[%clk
0:00:26.5]} 64. Rh2 {[%clk 0:00:24.5]} 64... Ke6 {[%clk 0:00:27]} 65. Rh7 {[%clk
0:00:24.9]} 65... Rd7 {[%clk 0:00:28]} 66. Rh8 {[%clk 0:00:26.1]} 66... Rc7
{[%clk 0:00:27.9]} 67. Re8+ {[%clk 0:00:20.2]} 67... Kf7 {[%clk 0:00:28.9]} 68.
Ra8 {[%clk 0:00:21.3]} 68... Rc4+ {[%clk 0:00:29.3]} 69. Kd5 {[%clk 0:00:20.9]}
69... Rxa4 {[%clk 0:00:29.9]} 70. Kc6 {[%clk 0:00:18.5]} 70... Rxg4 {[%clk
0:00:30.7]} 71. Rxa7+ {[%clk 0:00:19.5]} 71... Ke6 {[%clk 0:00:31.2]} 72. Kxb6
{[%clk 0:00:20.8]} 72... Rb4 {[%clk 0:00:31.8]} 73. Kc6 {[%clk 0:00:17.5]} 73...
Rc4+ {[%clk 0:00:30.4]} 74. Kb7 {[%clk 0:00:16.9]} 74... g4 {[%clk 0:00:31.5]}
75. b6 {[%clk 0:00:17.2]} 75... g3 {[%clk 0:00:31.2]} 76. Ra3 {[%clk 0:00:18.1]}
76... Rg4 {[%clk 0:00:27.9]} 77. Ra1 {[%clk 0:00:16.8]} 77... f5 {[%clk
0:00:27.7]} 78. Ka7 {[%clk 0:00:16.9]} 78... f4 {[%clk 0:00:27.6]} 79. b7 {[%clk
0:00:18.3]} 79... Rg7 {[%clk 0:00:28.7]} 80. Ka8 {[%clk 0:00:19.2]} 80... Rg8+
{[%clk 0:00:26.7]} 81. Ka7 {[%clk 0:00:19.9]} 81... Kf5 {[%clk 0:00:24.2]} 82.
Rc1 {[%clk 0:00:20.4]} 82... g2 {[%clk 0:00:22.2]} 83. Rc5+ {[%clk 0:00:19.8]}
83... Kg4 {[%clk 0:00:22]} 0-1

[Event "*** Titled Tuesday Blitz"]
[Site "Chess.com"]
[Date "2018.12.04"]
[Round "2"]
[White "Dr-Bassem"]
[Black "snowlord"]
[Result "1/2-1/2"]
[WhiteElo "2751"]
[BlackElo "2652"]
[TimeControl "180+2"]
[EndTime "13:25:49 PST"]
[Termination "Game drawn - insufficient material"]

1. e4 {[%clk 0:03:01.9]} 1... c5 {[%clk 0:02:55.6]} 2. Nf3 {[%clk 0:03:02.9]}
2... d6 {[%clk 0:02:56.5]} 3. g3 {[%clk 0:03:02.9]} 3... Nf6 {[%clk 0:02:56.8]}
4. d3 {[%clk 0:03:03.7]} 4... g6 {[%clk 0:02:58.5]} 5. Bg2 {[%clk 0:03:05.1]}
5... Bg7 {[%clk 0:03:00.2]} 6. O-O {[%clk 0:03:06.7]} 6... O-O {[%clk
0:03:01.8]} 7. c3 {[%clk 0:03:08.3]} 7... Nc6 {[%clk 0:03:02.8]} 8. Re1 {[%clk
0:03:09.6]} 8... Bg4 {[%clk 0:03:02.1]} 9. h3 {[%clk 0:03:10.9]} 9... Bxf3
{[%clk 0:03:03.5]} 10. Qxf3 {[%clk 0:03:12.5]} 10... Nd7 {[%clk 0:03:05.4]} 11.
Be3 {[%clk 0:03:13.8]} 11... b5 {[%clk 0:03:06.7]} 12. a3 {[%clk 0:03:08.7]}
12... a5 {[%clk 0:03:07.1]} 13. Rd1 {[%clk 0:03:08.8]} 13... b4 {[%clk
0:03:04.5]} 14. d4 {[%clk 0:03:09.1]} 14... bxc3 {[%clk 0:03:01.6]} 15. bxc3
{[%clk 0:03:11]} 15... Qb6 {[%clk 0:02:53.9]} 16. e5 {[%clk 0:03:05.3]} 16...
Rac8 {[%clk 0:02:33.1]} 17. exd6 {[%clk 0:03:05]} 17... cxd4 {[%clk 0:02:27.1]}
18. dxe7 {[%clk 0:03:00.7]} 18... Rfe8 {[%clk 0:02:22.3]} 19. cxd4 {[%clk
0:02:59.9]} 19... Bxd4 {[%clk 0:02:11.7]} 20. Bxd4 {[%clk 0:02:44.1]} 20... Nxd4
{[%clk 0:02:13.6]} 21. Qd3 {[%clk 0:02:14.3]} 21... Nc2 {[%clk 0:01:55.8]} 22.
Qxd7 {[%clk 0:01:59.3]} 22... Nxa1 {[%clk 0:01:56.3]} 23. Nc3 {[%clk 0:02:00.1]}
23... Nc2 {[%clk 0:01:39.6]} 24. Nd5 {[%clk 0:01:59.7]} 24... Qe6 {[%clk
0:01:25.8]} 25. Qxe6 {[%clk 0:00:44.5]} 25... fxe6 {[%clk 0:01:27.7]} 26. Nf6+
{[%clk 0:00:45.7]} 26... Kf7 {[%clk 0:01:27.9]} 27. Nxe8 {[%clk 0:00:45.6]}
27... Rxe8 {[%clk 0:01:29.8]} 28. a4 {[%clk 0:00:28.3]} 28... Rxe7 {[%clk
0:01:28.3]} 29. Rc1 {[%clk 0:00:27.2]} 29... Nd4 {[%clk 0:01:16.3]} 30. Rc5
{[%clk 0:00:27.2]} 30... Ra7 {[%clk 0:01:17.6]} 31. Be4 {[%clk 0:00:17.1]} 31...
Ke7 {[%clk 0:01:18.4]} 32. Kg2 {[%clk 0:00:16.1]} 32... Kd6 {[%clk 0:01:19.5]}
33. Rc8 {[%clk 0:00:16.9]} 33... Rc7 {[%clk 0:01:16.4]} 34. Ra8 {[%clk
0:00:15.9]} 34... Rc5 {[%clk 0:01:17.6]} 35. g4 {[%clk 0:00:15.8]} 35... Ke5
{[%clk 0:01:13.9]} 36. f3 {[%clk 0:00:12.9]} 36... Ne2 {[%clk 0:01:05.8]} 37.
Ra7 {[%clk 0:00:09.4]} 37... h5 {[%clk 0:00:43.5]} 38. Kf2 {[%clk 0:00:08.2]}
38... Nf4 {[%clk 0:00:37.8]} 39. Kg3 {[%clk 0:00:08.2]} 39... hxg4 {[%clk
0:00:30.7]} 40. hxg4 {[%clk 0:00:03.7]} 40... g5 {[%clk 0:00:31.8]} 41. Kf2
{[%clk 0:00:03.5]} 41... Kd4 {[%clk 0:00:27.7]} 42. Rd7+ {[%clk 0:00:03.2]}
42... Kc3 {[%clk 0:00:28.3]} 43. Rb7 {[%clk 0:00:04.4]} 43... Rc4 {[%clk
0:00:28.3]} 44. Rb5 {[%clk 0:00:04.4]} 44... Rxa4 {[%clk 0:00:29.2]} 45. Rxg5
{[%clk 0:00:05.7]} 45... Ra2+ {[%clk 0:00:28.5]} 46. Kg3 {[%clk 0:00:04.7]}
46... Ne2+ {[%clk 0:00:29.8]} 47. Kh4 {[%clk 0:00:05]} 47... a4 {[%clk
0:00:31.4]} 48. Ra5 {[%clk 0:00:03.9]} 48... a3 {[%clk 0:00:31.6]} 49. g5 {[%clk
0:00:04.8]} 49... Kb4 {[%clk 0:00:26.3]} 50. Ra8 {[%clk 0:00:05.4]} 50... Nc3
{[%clk 0:00:25.9]} 51. g6 {[%clk 0:00:04.8]} 51... Nxe4 {[%clk 0:00:27.1]} 52.
fxe4 {[%clk 0:00:06.3]} 52... Rg2 {[%clk 0:00:28.7]} 53. Kh5 {[%clk 0:00:07.5]}
53... a2 {[%clk 0:00:27.8]} 54. Kh6 {[%clk 0:00:08.1]} 54... Kb3 {[%clk
0:00:29]} 55. g7 {[%clk 0:00:08.8]} 55... Kb2 {[%clk 0:00:23.9]} 56. Kh7 {[%clk
0:00:10.1]} 56... Rh2+ {[%clk 0:00:22.1]} 57. Kg6 {[%clk 0:00:11.4]} 57... Rg2+
{[%clk 0:00:16]} 58. Kf7 {[%clk 0:00:10.7]} 58... Rf2+ {[%clk 0:00:08.9]} 59.
Kxe6 {[%clk 0:00:11.1]} 59... Rg2 {[%clk 0:00:10.8]} 60. Kf7 {[%clk 0:00:11.9]}
60... Rf2+ {[%clk 0:00:11.9]} 61. Ke7 {[%clk 0:00:10.4]} 61... Rg2 {[%clk
0:00:13.2]} 62. Kf8 {[%clk 0:00:09.8]} 62... Rf2+ {[%clk 0:00:14.5]} 63. Ke8
{[%clk 0:00:08.9]} 63... Rg2 {[%clk 0:00:15.5]} 64. Kf7 {[%clk 0:00:03.9]} 64...
Rf2+ {[%clk 0:00:16.4]} 65. Ke7 {[%clk 0:00:04.9]} 65... Rg2 {[%clk 0:00:17.5]}
66. Rb8+ {[%clk 0:00:06.2]} 66... Kc3 {[%clk 0:00:11.4]} 67. Rc8+ {[%clk
0:00:05.3]} 67... Kd4 {[%clk 0:00:10.5]} 68. Ra8 {[%clk 0:00:03.6]} 68... Rxg7+
{[%clk 0:00:11.3]} 69. Kf6 {[%clk 0:00:05.1]} 69... Rg2 {[%clk 0:00:13.2]} 70.
e5 {[%clk 0:00:06.2]} 70... Rf2+ {[%clk 0:00:14.6]} 71. Ke6 {[%clk 0:00:07.6]}
71... Kc4 {[%clk 0:00:12.5]} 72. Kd6 {[%clk 0:00:06.6]} 72... Rd2+ {[%clk
0:00:13.5]} 73. Kc6 {[%clk 0:00:07.2]} 73... Re2 {[%clk 0:00:10.9]} 74. Kd6
{[%clk 0:00:08.4]} 74... Kb3 {[%clk 0:00:12]} 75. e6 {[%clk 0:00:09.4]} 75...
Rd2+ {[%clk 0:00:13.3]} 76. Kc6 {[%clk 0:00:10.1]} 76... Re2 {[%clk 0:00:14.1]}
77. Kd7 {[%clk 0:00:11]} 77... Re4 {[%clk 0:00:14.9]} 78. e7 {[%clk 0:00:10.7]}
78... Rd4+ {[%clk 0:00:16.3]} 79. Ke6 {[%clk 0:00:10.6]} 79... Re4+ {[%clk
0:00:17.3]} 80. Kf6 {[%clk 0:00:10.6]} 80... Rxe7 {[%clk 0:00:17.3]} 81. Kxe7
{[%clk 0:00:11.6]} 81... Kb2 {[%clk 0:00:19]} 82. Rxa2+ {[%clk 0:00:12.5]} 82...
Kxa2 {[%clk 0:00:20.2]} 1/2-1/2